fUST/lending_fUST_20251023
["ID","MTS","AMOUNT","RATE_DAILY","PERIOD"]
[392144235,1761207059918,-151.0,0.00035498,30]
[392144236,1761207059927,-151.0,0.00035498,30]
[392144237,1761207059936,-230.555605,0.00035498,30]
[392144238,1761207059946,-556.946399,0.00035498,30]
[392144239,1761207059955,-230.555605,0.00035498,30]
[392144240,1761207059965,-556.946399,0.00035498,30]
[392144241,1761207059975,-556.946399,0.00035498,30]
[392144242,1761207059984,-230.555605,0.00035498,30]
[392144243,1761207059993,-230.555605,0.00035498,30]
[392144244,1761207060003,-556.946399,0.00035498,30]
[392144245,1761207060012,-198.084585,0.00035498,30]
[392144246,1761207060022,-593.038995,0.00035498,30]
[392144247,1761207060032,-198.084585,0.00035498,30]
[392144248,1761207060042,-593.038995,0.00035498,30]
[392144249,1761207060051,-593.038995,0.00035498,30]
[392144250,1761207060061,-198.084585,0.00035498,30]
[392144251,1761207060072,-593.038995,0.00035498,30]
[392144252,1761207060083,-198.084585,0.00035498,30]
[392144253,1761207060092,-151.0,0.00035498,30]
[392144254,1761207060101,-334.203803,0.00035498,30]
[392144255,1761207060112,-151.0,0.00035498,30]
[392144257,1761207060122,-334.203803,0.00035498,30]
[392144258,1761207060132,-151.0,0.00035498,30]
[392144259,1761207060141,-151.0,0.00035498,30]
[392144260,1761207060151,-151.0,0.00035498,30]
[392144261,1761207060161,-334.203803,0.00035498,30]
[392144262,1761207060171,-151.0,0.00035498,30]
[392144263,1761207060180,-151.0,0.00035498,30]
[392144264,1761207060189,-334.203803,0.00035498,30]
[392144265,1761207060199,-151.0,0.00035498,30]
[392144266,1761207060208,-151.0,0.00035498,30]
[392144267,1761207060218,-151.0,0.00035498,30]
[392144268,1761207060228,-151.0,0.00035498,30]
[392144269,1761207060237,-151.0,0.00035498,30]
[392144270,1761207060248,-227.176537,0.00035498,30]
[392144271,1761207060258,-242.549118,0.00035498,30]
[392144272,1761207060268,-151.0,0.00035498,30]
[392144273,1761207060278,-227.176537,0.00035498,30]
[392144274,1761207060287,-227.176537,0.00035498,30]
[392144275,1761207060297,-227.176537,0.00035498,30]
[392144276,1761207060307,-434.565962,0.00035498,7]
[392144277,1761207060317,-434.565962,0.00035498,7]
[392144278,1761207060326,-434.565962,0.00035498,7]
[392144279,1761207060337,-434.565962,0.00035498,7]
[392144280,1761207060347,-151.0,0.00035498,30]
[392144281,1761207060356,-151.0,0.00035498,30]
[392144282,1761207060366,-151.0,0.00035498,30]
[392144283,1761207060376,-151.0,0.00035498,30]
[392144284,1761207060387,-379.567472,0.00035498,15]
[392144285,1761207060397,-151.0,0.00035498,30]
[392144286,1761207060407,-379.567472,0.00035498,15]
[392144287,1761207060417,-151.0,0.00035498,30]
[392144288,1761207060427,-379.567472,0.00035498,15]
[392144289,1761207060438,-171.942117,0.00035498,30]
[392144290,1761207060448,-379.567472,0.00035498,15]
[392144291,1761207060458,-502.462057,0.00035498,30]
[392144292,1761207060468,-502.462057,0.00035498,30]
[392144293,1761207060531,-502.462057,0.00035498,30]
[392144294,1761207060542,-502.462057,0.00035498,30]
[392144295,1761207060552,-9701.0,0.000355,30]
[392144296,1761207060562,-3264.45349683,0.000355,60]
[392144297,1761207061111,-325.6087474,0.00023973,2]
[392144298,1761207061126,-280.92,0.00026481,10]
[392144299,1761207061141,-982.088871,0.00026491,7]
[392144300,1761207061156,-151.0,0.00026491,7]
[392144301,1761207061170,-982.088871,0.00026491,7]
[392144302,1761207061182,-151.0,0.00026502,7]
[392144303,1761207061191,-151.0,0.00026502,7]
[392144304,1761207061201,-151.0,0.00026502,7]
[392144305,1761207061210,-982.088871,0.000296,30]
[392144306,1761207061219,-151.0,0.000296,30]
[392144307,1761207061229,-982.088871,0.000296,30]
[392144308,1761207061238,-151.0,0.0003077,30]
[392144309,1761207061248,-151.0,0.0003077,30]
[392144310,1761207061258,-151.0,0.00032,30]
[392144311,1761207061267,-151.0,0.00032,30]
[392144312,1761207061277,-982.088871,0.00032,30]
[392144313,1761207061286,-982.088871,0.00032,30]
[392144314,1761207061296,-151.0,0.00035,30]
[392144315,1761207061305,-151.0,0.00035,30]
[392144316,1761207061315,-982.088871,0.00035,30]
[392144317,1761207061325,-12923.85908855,0.000355,60]
[392144318,1761207061335,-321.066047,0.000355,30]
[392144319,1761207061345,-321.066047,0.000355,60]
[392144320,1761207061355,-230.849831,0.000355,30]
[392144321,1761207061367,-230.849831,0.000355,60]
[392144322,1761207061536,-151.0,0.000355,30]
[392144323,1761207061546,-151.0,0.000355,30]
[392144324,1761207061556,-427.313742,0.000355,30]
[392144325,1761207061566,-1327.460076,0.000355,30]
[392144326,1761207061576,-427.313742,0.000355,30]
[392144327,1761207061586,-1327.460076,0.000355,30]
[392144328,1761207061596,-427.313742,0.000355,30]
[392144329,1761207061606,-1327.460076,0.000355,30]
[392144330,1761207061618,-427.313743,0.000355,30]
[392144331,1761207061628,-1327.460072,0.000355,30]
[392144332,1761207061638,-166.180347,0.000355,30]
[392144333,1761207061648,-166.180347,0.000355,30]
[392144334,1761207061658,-166.180347,0.000355,30]
[392144335,1761207061668,-151.0,0.000355,30]
[392144336,1761207061677,-166.180346,0.000355,30]
[392144337,1761207061686,-151.0,0.000355,30]
[392144338,1761207061696,-364.276191,0.000355,30]
[392144339,1761207061705,-280.735566,0.000355,30]
[392144340,1761207061716,-151.0,0.000355,30]
[392144341,1761207061726,-364.276191,0.000355,30]
[392144342,1761207061736,-364.276191,0.000355,30]
[392144343,1761207061746,-151.0,0.000355,30]
[392144344,1761207061757,-280.735566,0.000355,30]
[392144345,1761207061766,-364.276196,0.000355,30]
[392144346,1761207061777,-280.735566,0.000355,30]
[392144347,1761207061786,-280.735556,0.000355,30]
[392144348,1761207061795,-223.832478,0.000355,30]
[392144349,1761207061807,-223.832478,0.000355,30]
[392144350,1761207061818,-223.832478,0.000355,30]
[392144351,1761207061828,-223.832484,0.000355,30]
[392144352,1761207061839,-348.959647,0.000355,30]
[392144353,1761207061848,-151.0,0.000355,30]
[392144354,1761207061858,-348.959647,0.000355,30]
[392144355,1761207061868,-348.959647,0.000355,30]
[392144356,1761207061883,-200.255539,0.000355,30]
[392144357,1761207061893,-209.684042,0.000355,30]
[392144358,1761207061904,-348.959651,0.000355,30]
[392144359,1761207061915,-209.684042,0.000355,30]
[392144360,1761207061924,-200.255539,0.000355,30]
[392144361,1761207061935,-513.319864,0.000355,30]
[392144362,1761207061946,-209.684042,0.000355,30]
[392144363,1761207061957,-200.255539,0.000355,30]
[392144364,1761207061966,-200.25553615,0.000355,30]
[392144365,1761207061976,-209.684044,0.000355,30]
[392144366,1761207061987,-513.319864,0.000355,30]
[392144367,1761207061997,-513.319864,0.000355,30]
[392144368,1761207062007,-513.319873,0.000355,30]
[392144369,1761207062016,-151.0,0.000355,30]
[392144370,1761207062026,-151.0,0.000355,30]
[392144371,1761207062036,-151.0,0.000355,30]
[392144372,1761207062046,-250.0,0.000355,10]
[392144373,1761207062056,-151.0,0.000355,30]
[392144374,1761207062065,-151.0,0.000355,30]
[392144375,1761207062074,-151.0,0.000355,30]
[392144376,1761207062084,-161.703957,0.000355,30]
[392144377,1761207062094,-151.0,0.000355,30]
[392144378,1761207062104,-151.0,0.000355,30]
[392144379,1761207062114,-166.719209,0.000355,2]
[392144380,1761207062124,-151.0,0.000355,30]
[392144381,1761207062134,-166.719209,0.000355,2]
[392144382,1761207062146,-166.719209,0.000355,2]
[392144383,1761207062157,-236.476012,0.000355,30]
[392144384,1761207062169,-166.719208,0.000355,2]
[392144385,1761207062179,-236.476012,0.000355,30]
[392144386,1761207062190,-236.476012,0.000355,30]
[392144387,1761207062200,-236.476017,0.000355,30]
[392144388,1761207062211,-151.0,0.000355,30]
[392144389,1761207062221,-1016.850283,0.000355,30]
[392144390,1761207062230,-151.0,0.000355,30]
[392144391,1761207062240,-1016.850283,0.000355,30]
[392144392,1761207062250,-268.092618,0.000355,30]
[392144393,1761207062259,-1016.850283,0.000355,30]
[392144394,1761207062269,-1016.85028,0.000355,30]
[392144395,1761207062279,-10000.0,0.000355,30]
[392144396,1761207062288,-151.0,0.000355,30]
[392144397,1761207062298,-10000.0,0.000355,30]
[392144398,1761207062308,-160.402576,0.000355,30]
[392144399,1761207062317,-160.402576,0.000355,30]
[392144400,1761207062326,-160.402576,0.000355,30]
[392144401,1761207062336,-677.415532,0.000355,30]
[392144402,1761207062346,-160.402566,0.000355,30]
[392144403,1761207062356,-151.0,0.000355,30]
[392144404,1761207062368,-677.415532,0.000355,30]
[392144405,1761207062379,-677.415532,0.000355,30]
[392144406,1761207062389,-677.415539,0.000355,30]
[392144407,1761207062399,-151.0,0.000355,30]
[392144408,1761207062409,-151.0,0.000355,30]
[392144409,1761207062419,-1638.8963,0.000355,30]
[392144410,1761207062429,-1638.8963,0.000355,30]
[392144411,1761207062439,-1638.8963,0.000355,30]
[392144412,1761207062449,-1638.896291,0.000355,30]
[392144413,1761207062458,-151.0,0.000355,30]
[392144414,1761207062468,-151.0,0.000355,30]
[392144415,1761207062478,-219.186246,0.000355,30]
[392144416,1761207062487,-219.186246,0.000355,30]
[392144417,1761207062497,-219.186246,0.000355,30]
[392144418,1761207062507,-155.404919,0.000355,30]
[392144419,1761207062517,-219.186236,0.000355,30]
[392144420,1761207062526,-151.0,0.000355,30]
[392144421,1761207062536,-151.0,0.000355,30]
[392144422,1761207062546,-151.0,0.000355,30]
[392144423,1761207062556,-655.404973,0.000355,30]
[392144424,1761207062566,-655.404973,0.000355,30]
[392144425,1761207062575,-151.0,0.000355,30]
[392144426,1761207062584,-655.404973,0.000355,30]
[392144427,1761207062594,-151.0,0.000355,30]
[392144428,1761207062604,-151.0,0.000355,30]
[392144429,1761207062616,-151.0,0.000355,30]
[392144430,1761207062625,-655.404977,0.000355,30]
[392144431,1761207062633,-151.0,0.000355,30]
[392144432,1761207062642,-237.670546,0.000355,30]
[392144433,1761207062650,-151.0,0.000355,30]
[392144434,1761207062660,-237.670546,0.000355,30]
[392144435,1761207062670,-151.0,0.000355,30]
[392144436,1761207062680,-151.0,0.000355,2]
[392144437,1761207062690,-971.890941,0.000355,30]
[392144438,1761207062699,-237.670546,0.000355,30]
[392144439,1761207062709,-971.890941,0.000355,30]
[392144440,1761207062718,-237.670554,0.000355,30]
[392144441,1761207062727,-971.890941,0.000355,30]
[392144442,1761207062737,-164.325094,0.000355,30]
[392144443,1761207062747,-971.89095,0.000355,30]
[392144444,1761207062757,-700.340436,0.000355,30]
[392144445,1761207062766,-700.340436,0.000355,30]
[392144446,1761207062776,-700.340436,0.000355,30]
[392144447,1761207062787,-700.34043,0.000355,30]
[392144448,1761207062796,-393.438978,0.000355,30]
[392144449,1761207062806,-393.438978,0.000355,30]
[392144450,1761207062815,-183.198921,0.000355,30]
[392144451,1761207062825,-393.438978,0.000355,30]
[392144452,1761207062835,-183.198921,0.000355,30]
[392144453,1761207062845,-393.438978,0.000355,30]
[392144454,1761207062855,-183.198921,0.000355,30]
[392144455,1761207062865,-183.198916,0.000355,30]
[392144456,1761207062878,-151.0,0.00035575,30]
[392144457,1761207062887,-151.0,0.00035575,30]
[392144458,1761207062897,-151.0,0.00035575,30]
[392144459,1761207062906,-1074.163462,0.00035575,30]
[392144460,1761207062916,-1074.163462,0.00035575,30]
[392144461,1761207062925,-339.399069,0.00035575,30]
[392144462,1761207062935,-1074.163462,0.00035575,30]
[392144463,1761207062945,-339.399069,0.00035575,30]
[392144464,1761207062954,-1074.163454,0.00035575,30]
[392144465,1761207062963,-197.930796,0.00035575,30]
[392144466,1761207062972,-151.0,0.00035575,30]
[392144467,1761207062982,-339.399069,0.00035575,30]
[392144468,1761207062991,-151.0,0.00035575,30]
[392144469,1761207063001,-197.930796,0.00035575,30]
[392144470,1761207063010,-339.399067,0.00035575,30]
[392144471,1761207063019,-197.930796,0.00035575,30]
[392144472,1761207063028,-197.930792,0.00035575,30]
[392144473,1761207063037,-151.0,0.00035575,30]
[392144474,1761207063047,-151.0,0.00035575,30]
[392144475,1761207063057,-151.0,0.00035575,30]
[392144476,1761207063067,-151.0,0.00035575,30]
[392144477,1761207063077,-151.0,0.00035575,30]
[392144478,1761207063087,-757.548518,0.00035575,30]
[392144479,1761207063097,-369.066472,0.00035575,30]
[392144480,1761207063109,-757.548518,0.00035575,30]
[392144481,1761207063119,-369.066472,0.00035575,30]
[392144482,1761207063129,-757.548518,0.00035575,30]
[392144483,1761207063139,-369.066472,0.00035575,30]
[392144484,1761207063149,-757.548528,0.00035575,30]
[392144485,1761207063160,-369.066463,0.00035575,30]
[392144486,1761207063169,-160.174814,0.00035575,30]
[392144487,1761207063179,-160.174814,0.00035575,30]
[392144488,1761207063190,-151.0,0.00035575,30]
[392144489,1761207063199,-160.174814,0.00035575,30]
[392144490,1761207063210,-160.174814,0.00035575,30]
[392144491,1761207063219,-151.0,0.00035575,30]
[392144492,1761207063229,-151.0,0.00035575,30]
[392144493,1761207063238,-982.088871,0.00035575,30]
[392144494,1761207063248,-152.61278046,0.00035575,10]
[392144495,1761207063257,-165.52694812,0.00035575,10]
[392144496,1761207063267,-390329.63683432,0.00035575,20]
[392144497,1761207063299,-982.088871,0.00026491,7]
[392144498,1761207063309,-982.088871,0.00035,30]
[392144499,1761207063319,-982.088871,0.00035575,30]
[392144500,1761207063329,-1467848.71923325,0.00035575,20]
[392144501,1761207063339,-5494.0545475,0.00035575,7]
[392144502,1761207063350,-92132.94875899,0.00035575,2]
[392144503,1761207063360,-197.61764664,0.00035575,2]
[392144504,1761207063369,-26059.25488587,0.00035575,12]
[392144505,1761207063379,-22143.00018073,0.00035575,2]
[392144506,1761207063390,-155.0,0.00035575,2]
[392144507,1761207063399,-250.0,0.00035575,10]
[392144508,1761207063409,-250.0,0.00035575,10]
[392144509,1761207063419,-250.0,0.00035575,10]
[392144510,1761207063428,-250.0,0.00035575,10]
[392144511,1761207063442,-251.009692,0.00035575,10]
[392144512,1761207063452,-1000.0,0.000356,2]
[392144513,1761207063462,-250.0,0.000356,10]
[392144514,1761207063472,-348.35271767,0.00035601,2]
[392144515,1761207063482,-8000.0,0.00035616,2]
[392144516,1761207063491,-8000.0,0.00035616,2]
[392144517,1761207063500,-8000.0,0.00035616,2]
[392144518,1761207063510,-8000.0,0.00035616,2]
[392144519,1761207063519,-8000.0,0.00035616,2]
[392144520,1761207063529,-8000.0,0.00035616,2]
[392144521,1761207063539,-6310.50604695,0.00035616,2]
[392144522,1761207063550,-1999.0,0.00035616,120]
[392144523,1761207063560,-500.0,0.00035616,30]
[392144524,1761207063570,-281.875891,0.00035616,30]
[392144525,1761207063581,-281.875891,0.00035616,30]
[392144526,1761207063591,-281.875891,0.00035616,30]
[392144527,1761207063601,-281.875891,0.00035616,30]
[392144528,1761207063612,-281.875891,0.00035616,30]
[392144529,1761207063622,-281.875891,0.00035616,30]
[392144530,1761207063632,-281.875891,0.00035616,30]
[392144531,1761207063642,-281.875891,0.00035616,30]
[392144532,1761207063652,-281.875891,0.00035616,30]
[392144533,1761207063662,-281.875891,0.00035616,30]
[392144534,1761207063673,-281.875891,0.00035616,30]
[392144535,1761207063755,-281.875891,0.00035616,30]
[392144536,1761207063764,-281.875891,0.00035616,30]
[392144537,1761207063775,-281.875891,0.00035616,30]
[392144538,1761207063784,-281.875891,0.00035616,30]
[392144539,1761207063793,-281.875891,0.00035616,30]
[392144540,1761207063803,-281.875891,0.00035616,30]
[392144541,1761207063813,-281.875891,0.00035616,30]
[392144542,1761207063822,-281.875891,0.00035616,30]
[392144543,1761207063832,-281.875893,0.00035616,30]
[392144544,1761207063842,-168.0,0.00035652,2]
[392144545,1761207063851,-250.0,0.000357,10]
[392144546,1761207063863,-168.0,0.00035736,2]
[392144547,1761207063873,-250.0,0.000358,10]
[392144548,1761207063883,-4283.0,0.00035827,2]
[392144549,1761207063897,-1613.0,0.00035849,2]
[392144550,1761207063907,-810.74923219,0.00035886,120]
[392144551,1761207063918,-807.0,0.00035886,2]
[392144552,1761207063928,-1000.0,0.000359,2]
[392144553,1761207063938,-352.858504,0.000359,10]
[392144554,1761207063948,-278.0,0.00035961,7]
[392144555,1761207063959,-168.0,0.00035981,2]
[392144556,1761207063969,-178.0,0.00036,30]
[392144557,1761207063979,-1999.0,0.00036164,120]
[392144558,1761207063990,-500.0,0.00036164,30]
[392144559,1761207064000,-1000.0,0.000362,2]
[392144560,1761207064010,-168.0,0.00036335,2]
[392144561,1761207064020,-168.3137781,0.00036389,30]
[392144562,1761207064030,-321.066047,0.00036449,2]
[392144563,1761207064040,-230.849831,0.00036449,2]
[392144564,1761207064050,-321.066047,0.00036493,30]
[392144565,1761207064060,-230.849831,0.00036493,30]
[392144566,1761207064069,-1000.0,0.000365,2]
[392144567,1761207064079,-278.0,0.00036512,2]
[392144568,1761207064088,-278.0,0.00036515,2]
[392144569,1761207064097,-150.0,0.00036587,2]
[392144570,1761207064106,-632.0,0.00036587,2]
[392144571,1761207064120,-983.0,0.00036587,2]
[392144572,1761207064129,-2165.0,0.00036587,2]
[392144573,1761207064139,-200.0,0.000366,120]
[392144574,1761207064148,-5252.0,0.00036679,3]
[392144575,1761207064158,-1999.0,0.00036712,120]
[392144576,1761207064167,-500.0,0.00036712,30]
[392144577,1761207064177,-226.70429087,0.00036765,2]
[392144578,1761207064187,-278.0,0.00036771,2]
[392144579,1761207064197,-1000.0,0.000368,2]
[392144580,1761207064206,-278.0,0.00036829,7]
[392144581,1761207064215,-321.066047,0.0003695,15]
[392144582,1761207064224,-230.849831,0.0003695,15]
[392144583,1761207064234,-161.347598,0.0003695,15]
[392144584,1761207064245,-321.066047,0.00036986,60]
[392144585,1761207064254,-230.849831,0.00036986,60]
[392144586,1761207064263,-120582.15257311,0.00037,2]
[392144587,1761207090701,229.63,0.00035575,30]
[392144588,1761207207115,-720.0,0.00026814,30]
[392144589,1761207207183,-403.24192968,0.00029,30]
[392144590,1761207207248,-864.0,0.00029495,30]
[392144591,1761207207313,-982.088871,0.000296,30]
[392144592,1761207207374,-982.088871,0.000296,30]
[392144593,1761207207434,-10000.0,0.000296,30]
[392144594,1761207207493,-10000.0,0.000296,30]
[392144595,1761207207552,-10000.0,0.000296,30]
[392144596,1761207207614,-10000.0,0.000296,30]
[392144597,1761207207673,-10000.0,0.000296,30]
[392144598,1761207207727,-500.0,0.0003077,30]
[392144599,1761207207908,-151.0,0.0003077,30]
[392144600,1761207207970,-500.0,0.0003077,30]
[392144601,1761207208029,-151.46458228,0.0003077,30]
[392144602,1761207208086,-151.0,0.0003077,30]
[392144603,1761207208142,-278.07647929,0.0003077,30]
[392144604,1761207208199,-151.35141846,0.0003077,30]
[392144605,1761207208256,-282.39684521,0.0003077,30]
[392144606,1761207208314,-500.0,0.00030825,30]
[392144607,1761207208371,-151.0,0.00030825,30]
[392144608,1761207208427,-500.0,0.00030825,30]
[392144609,1761207208481,-151.0,0.00030825,30]
[392144610,1761207208535,-500.0,0.0003088,30]
[392144611,1761207208589,-201.74549163,0.0003088,30]
[392144612,1761207208647,-641.56667443,0.0003088,30]
[392144613,1761207208706,-199.33539142,0.0003088,30]
[392144614,1761207208766,-500.0,0.00030934,30]
[392144615,1761207208824,-500.0,0.00030989,30]
[392144616,1761207208880,-386.01082697,0.00031044,30]
[392144617,1761207208942,-982.088871,0.00032,30]
[392144618,1761207209000,-982.088871,0.00032,30]
[392144619,1761207209059,-10000.0,0.00032,30]
[392144620,1761207209117,-10000.0,0.00032,30]
[392144621,1761207209173,-10000.0,0.00032,30]
[392144622,1761207209230,-10000.0,0.00032,30]
[392144623,1761207209291,-10000.0,0.00032,30]
[392144624,1761207209356,-1000.0,0.00032444,30]
[392144625,1761207209415,-595.22898702,0.00033899,120]
[392144626,1761207209475,-982.088871,0.00035,30]
[392144627,1761207209533,-982.088871,0.00035,30]
[392144628,1761207209591,-10000.0,0.00035,30]
[392144629,1761207209651,-10000.0,0.00035,30]
[392144630,1761207209710,-10000.0,0.00035,30]
[392144631,1761207209769,-10000.0,0.00035,30]
[392144632,1761207209826,-3173.021688,0.00035,30]
[392144633,1761207209881,-170.0,0.00035,120]
[392144634,1761207209942,-512.40954242,0.0003549,30]
[392144635,1761207210002,-231.688881,0.000355,60]
[392144636,1761207210062,-982.088871,0.00035575,30]
[392144637,1761207210120,-982.088875,0.00035575,30]
[392144638,1761207210180,-10000.0,0.00035575,30]
[392144639,1761207210247,-10000.0,0.00035575,30]
[392144640,1761207210320,-10000.0,0.00035575,30]
[392144641,1761207210394,-10000.0,0.00035575,30]
[392144642,1761207210453,-1999.0,0.00035616,120]
[392144643,1761207210514,-1000.0,0.00035689,30]
[392144644,1761207210576,-244.0,0.00035689,30]
[392144645,1761207210634,-651.61910158,0.00035899,120]
[392144646,1761207210690,-170.0,0.00036,120]
[392144647,1761207210748,-1999.0,0.00036164,120]
[392144648,1761207210804,-168.3137781,0.00036389,30]
[392144649,1761207210861,-1999.0,0.00036712,120]
[392144650,1761207210916,-500.0,0.00036737,30]
[392144651,1761207210980,-192.799843,0.00037,30]
[392144652,1761207211040,-192.799843,0.00037,30]
[392144653,1761207211098,-192.799843,0.00037,30]
[392144654,1761207211154,-192.799843,0.00037,30]
[392144655,1761207211209,-151.0,0.00037,30]
[392144656,1761207211267,-262.164451,0.00037,30]
[392144657,1761207211324,-151.0,0.00037,30]
[392144658,1761207211383,-151.0,0.00037,30]
[392144659,1761207211436,-151.0,0.00037,30]
[392144660,1761207211491,-151.0,0.00037,30]
[392144661,1761207211547,-151.0,0.00037,30]
[392144662,1761207211602,-151.0,0.00037,30]
[392144663,1761207211659,-151.0,0.00037,30]
[392144664,1761207211715,-151.0,0.00037,30]
[392144665,1761207211768,-154.966948,0.00037,30]
[392144666,1761207211833,-230.555605,0.00037,30]
[392144667,1761207211900,-230.555605,0.00037,30]
[392144668,1761207211971,-230.555605,0.00037,30]
[392144669,1761207212038,-230.555605,0.00037,30]
[392144670,1761207212097,-198.084585,0.00037,30]
[392144671,1761207212149,-198.084585,0.00037,30]
[392144672,1761207212205,-198.084585,0.00037,30]
[392144673,1761207212259,-198.084585,0.00037,30]
[392144674,1761207212314,-151.0,0.00037,30]
[392144675,1761207212368,-151.0,0.00037,30]
[392144676,1761207212421,-151.0,0.00037,30]
[392144677,1761207212485,-151.0,0.00037,30]
[392144678,1761207212551,-151.0,0.00037,30]
[392144679,1761207212609,-151.0,0.00037,30]
[392144680,1761207212664,-151.0,0.00037,30]
[392144681,1761207212718,-151.0,0.00037,30]
[392144682,1761207212774,-151.0,0.00037,30]
[392144683,1761207212829,-151.0,0.00037,30]
[392144684,1761207212885,-151.0,0.00037,30]
[392144685,1761207212944,-151.0,0.00037,30]
[392144686,1761207213003,-283.71662194,0.00037,30]
[392144687,1761207213058,-151.0,0.00037,30]
[392144688,1761207213113,-151.0,0.00037,30]
[392144689,1761207213169,-151.0,0.00037,30]
[392144690,1761207213226,-151.0,0.00037,30]
[392144691,1761207213283,-151.0,0.00037,30]
[392144692,1761207213342,-151.0,0.00037,30]
[392144693,1761207213399,-502.462057,0.00037,30]
[392144694,1761207213555,-502.462057,0.00037,30]
[392144695,1761207213618,-502.462057,0.00037,30]
[392144696,1761207213679,-502.462049,0.00037,30]
[392144697,1761207213738,-220.93,0.00037142,120]
[392144698,1761207213796,-1999.0,0.0003726,120]
[392144699,1761207213857,-278.0,0.00037313,120]
[392144700,1761207213914,-196.970591,0.00037671,120]
[392144701,1761207213972,-158.97718663,0.00037781,30]
[392144702,1761207214034,-1999.0,0.00037808,120]
[392144703,1761207214093,-231.688881,0.0003785,60]
[392144704,1761207214157,-708.00921614,0.00037899,120]
[392144705,1761207214224,-4283.0,0.00038002,120]
[392144706,1761207214287,-500.0,0.00038161,30]
[392144707,1761207214355,-158.97718663,0.00038274,30]
[392144708,1761207214416,-403.24192968,0.00038356,120]
[392144709,1761207214478,-1999.0,0.00038356,120]
[392144710,1761207214538,-417.15472785,0.00038356,120]
[392144711,1761207214600,-1999.0,0.00038904,120]
[392144712,1761207214657,-220.93,0.0003891,60]
[392144713,1761207214714,-506.49602453,0.00039076,30]
[392144714,1761207214775,-1000.0,0.00039258,90]
[392144715,1761207214837,-492.0,0.00039258,90]
[392144716,1761207214897,-1999.0,0.00039452,120]
[392144717,1761207214960,-3092.0,0.000395,120]
[392144718,1761207215019,-393.0169993,0.00039556,30]
[392144719,1761207215083,-393.0169993,0.00039556,30]
[392144720,1761207215144,-392.3923018,0.00039556,30]
[392144721,1761207215203,-292.5302955,0.00039698,120]
[392144722,1761207215265,-764.3993307,0.00039899,120]
[392144723,1761207215327,-500.0,0.00039929,30]
[392144724,1761207215388,-180.3407975,0.00039967,30]
[392144725,1761207215451,-163.3659929,0.00039967,30]
[392144726,1761207215515,-1193.1363939,0.00039967,30]
[392144727,1761207215574,-163.3659929,0.00039967,30]
[392144728,1761207215634,-191.9951684,0.00039967,30]
[392144729,1761207215696,-298.7834787,0.00039967,30]
[392144730,1761207215758,-155.1954585,0.00039967,30]
[392144731,1761207215819,-589.8769586,0.00039967,30]
[392144732,1761207215880,-190.2776334,0.00039967,30]
[392144733,1761207215940,-298.7834787,0.00039967,30]
[392144734,1761207215999,-163.3659929,0.00039967,30]
[392144735,1761207216058,-153.0,0.00039967,30]